[Event "*** SCC Grand Prix: Titled Tuesday Blitz"]
[Site "Chess.com"]
[Date "2020.06.23"]
[Round "6"]
[White "Andreikka"]
[Black "Zkid"]
[Result "1-0"]
[WhiteElo "2940"]
[BlackElo "2724"]
[TimeControl "180+1"]
[EndTime "11:05:43 PDT"]
[Termination "Andreikka won by resignation"]

1. c4 {[%clk 0:03:00.9]} 1... e5 {[%clk 0:02:59]} 2. Nc3 {[%clk 0:03:00.2]} 2...
Nc6 {[%clk 0:02:58.7]} 3. Nf3 {[%clk 0:02:59.5]} 3... f5 {[%clk 0:02:58.3]} 4.
g3 {[%clk 0:02:57.7]} 4... g6 {[%clk 0:02:56.2]} 5. Bg2 {[%clk 0:02:35.7]} 5...
e4 {[%clk 0:02:48.7]} 6. Ng1 {[%clk 0:02:19]} 6... Nf6 {[%clk 0:02:42.2]} 7. Nh3
{[%clk 0:02:17.7]} 7... Bg7 {[%clk 0:02:38.9]} 8. O-O {[%clk 0:02:13.2]} 8...
O-O {[%clk 0:02:32.9]} 9. d3 {[%clk 0:02:06.7]} 9... exd3 {[%clk 0:02:31]} 10.
Qxd3 {[%clk 0:02:07.6]} 10... d6 {[%clk 0:02:23.8]} 11. Nf4 {[%clk 0:02:06.2]}
11... Kh8 {[%clk 0:02:14.3]} 12. b3 {[%clk 0:01:55.7]} 12... Ne4 {[%clk
0:01:55.6]} 13. Nfd5 {[%clk 0:01:47.5]} 13... Ne5 {[%clk 0:01:31.7]} 14. Qc2
{[%clk 0:01:41.4]} 14... c6 {[%clk 0:01:17]} 15. Nxe4 {[%clk 0:01:36.7]} 15...
cxd5 {[%clk 0:01:14.9]} 16. Nc3 {[%clk 0:01:15.2]} 16... dxc4 {[%clk 0:01:13.6]}
17. Rd1 {[%clk 0:01:12.4]} 17... Be6 {[%clk 0:01:01]} 18. Bxb7 {[%clk
0:01:12.3]} 18... Rb8 {[%clk 0:00:59.8]} 19. Bd5 {[%clk 0:01:12.5]} 19... Bxd5
{[%clk 0:00:53.1]} 20. Nxd5 {[%clk 0:01:13.4]} 20... Qc8 {[%clk 0:00:42.5]} 21.
Be3 {[%clk 0:00:53.5]} 21... a6 {[%clk 0:00:20.9]} 22. Bd4 {[%clk 0:00:44.5]}
22... cxb3 {[%clk 0:00:19.8]} 23. Qxc8 {[%clk 0:00:43]} 23... Rfxc8 {[%clk
0:00:19.9]} 24. axb3 {[%clk 0:00:43.7]} 24... Rxb3 {[%clk 0:00:19.6]} 25. Rxa6
{[%clk 0:00:43.1]} 25... Nc4 {[%clk 0:00:15.7]} 26. Bxg7+ {[%clk 0:00:38.2]}
26... Kxg7 {[%clk 0:00:16.6]} 27. Ra7+ {[%clk 0:00:35.6]} 27... Kf8 {[%clk
0:00:16.3]} 28. Rxh7 {[%clk 0:00:33.1]} 28... Re8 {[%clk 0:00:16.5]} 29. Ra1
{[%clk 0:00:28.1]} 29... Rxe2 {[%clk 0:00:10.2]} 30. Ra8+ {[%clk 0:00:25.7]}
30... Re8 {[%clk 0:00:10.5]} 31. Rh8+ {[%clk 0:00:26.3]} 31... Kg7 {[%clk
0:00:10.9]} 1-0

[Event "*** SCC Grand Prix: Titled Tuesday Blitz"]
[Site "Chess.com"]
[Date "2020.06.23"]
[Round "6"]
[White "ARTHURMOTIVATOR"]
[Black "profofchess"]
[Result "0-1"]
[WhiteElo "2335"]
[BlackElo "2382"]
[TimeControl "180+1"]
[EndTime "11:05:43 PDT"]
[Termination "profofchess won by resignation"]

1. e4 {[%clk 0:03:00.9]} 1... e6 {[%clk 0:03:00.1]} 2. b3 {[%clk 0:02:59.9]}
2... d5 {[%clk 0:02:58]} 3. Bb2 {[%clk 0:02:58.9]} 3... Nf6 {[%clk 0:02:57.6]}
4. e5 {[%clk 0:02:56.4]} 4... Nfd7 {[%clk 0:02:57.7]} 5. Qg4 {[%clk 0:02:54.7]}
5... g6 {[%clk 0:02:57.5]} 6. f4 {[%clk 0:02:53.9]} 6... c5 {[%clk 0:02:56.6]}
7. Nf3 {[%clk 0:02:54]} 7... Nc6 {[%clk 0:02:56.2]} 8. Be2 {[%clk 0:02:52.2]}
8... a6 {[%clk 0:02:52.6]} 9. Na3 {[%clk 0:02:50.3]} 9... b5 {[%clk 0:02:50.3]}
10. c3 {[%clk 0:02:50.2]} 10... c4 {[%clk 0:02:46.6]} 11. Nc2 {[%clk 0:02:47.3]}
11... Qb6 {[%clk 0:02:38.4]} 12. Ncd4 {[%clk 0:02:11.6]} 12... Nxd4 {[%clk
0:02:30.9]} 13. cxd4 {[%clk 0:02:00.6]} 13... a5 {[%clk 0:02:07.1]} 14. O-O
{[%clk 0:01:56.1]} 14... a4 {[%clk 0:02:04.9]} 15. bxc4 {[%clk 0:01:44.9]} 15...
dxc4 {[%clk 0:01:58.9]} 16. Ng5 {[%clk 0:01:34.4]} 16... Bb7 {[%clk 0:01:59]}
17. Bf3 {[%clk 0:01:30.8]} 17... a3 {[%clk 0:01:56.1]} 18. Bc3 {[%clk
0:01:04.4]} 18... b4 {[%clk 0:01:55.9]} 19. Rab1 {[%clk 0:01:04.2]} 19... Ra5
{[%clk 0:01:46.5]} 20. Ba1 {[%clk 0:00:57.5]} 20... Rb5 {[%clk 0:01:42.9]} 21.
Bxb7 {[%clk 0:00:54.7]} 21... Qxb7 {[%clk 0:01:42.7]} 22. Qe2 {[%clk 0:00:54.4]}
22... Nb6 {[%clk 0:01:32.9]} 23. Ne4 {[%clk 0:00:52.9]} 23... Be7 {[%clk
0:01:31.7]} 24. g4 {[%clk 0:00:24.7]} 24... Qd5 {[%clk 0:01:25.2]} 25. g5 {[%clk
0:00:24.5]} 25... Kd7 {[%clk 0:01:10.7]} 26. Rfc1 {[%clk 0:00:22.2]} 26... Rc8
{[%clk 0:01:01.3]} 27. Rc2 {[%clk 0:00:21.9]} 27... b3 {[%clk 0:00:43.9]} 28.
axb3 {[%clk 0:00:20.6]} 28... cxb3 {[%clk 0:00:44.8]} 29. Rxc8 {[%clk
0:00:20.1]} 29... Nxc8 {[%clk 0:00:45.5]} 30. Nc3 {[%clk 0:00:18.6]} 30... Qxd4+
{[%clk 0:00:43.7]} 31. Kf1 {[%clk 0:00:17.9]} 31... Qxf4+ {[%clk 0:00:41.6]} 32.
Ke1 {[%clk 0:00:15.4]} 32... Rxe5 {[%clk 0:00:38.8]} 0-1

[Event "*** SCC Grand Prix: Titled Tuesday Blitz"]
[Site "Chess.com"]
[Date "2020.06.23"]
[Round "6"]
[White "angryhorse9"]
[Black "bait_or_mate"]
[Result "0-1"]
[WhiteElo "2455"]
[BlackElo "2622"]
[TimeControl "180+1"]
[EndTime "11:05:45 PDT"]
[Termination "bait_or_mate won by resignation"]

1. e4 {[%clk 0:03:00.3]} 1... c5 {[%clk 0:02:59.6]} 2. Nf3 {[%clk 0:02:59.1]}
2... e6 {[%clk 0:02:59.8]} 3. c3 {[%clk 0:02:57.7]} 3... Nf6 {[%clk 0:02:58.8]}
4. e5 {[%clk 0:02:56.7]} 4... Nd5 {[%clk 0:02:59.2]} 5. d4 {[%clk 0:02:56.5]}
5... cxd4 {[%clk 0:02:59.4]} 6. cxd4 {[%clk 0:02:56.3]} 6... d6 {[%clk
0:02:59.7]} 7. Bd3 {[%clk 0:02:55.8]} 7... Bd7 {[%clk 0:02:59.9]} 8. a3 {[%clk
0:02:54.1]} 8... Bc6 {[%clk 0:03:00.1]} 9. O-O {[%clk 0:02:54.4]} 9... Nd7
{[%clk 0:03:00.5]} 10. Qe2 {[%clk 0:02:53.5]} 10... Qb6 {[%clk 0:02:46.7]} 11.
Nc3 {[%clk 0:02:45.1]} 11... Nxc3 {[%clk 0:02:40.5]} 12. bxc3 {[%clk 0:02:43.4]}
12... dxe5 {[%clk 0:02:40.4]} 13. Nxe5 {[%clk 0:02:41.5]} 13... Nxe5 {[%clk
0:02:39]} 14. Qxe5 {[%clk 0:02:40.9]} 14... Rc8 {[%clk 0:02:34.6]} 15. c4 {[%clk
0:02:36]} 15... Qc7 {[%clk 0:02:34]} 16. Qe2 {[%clk 0:02:31.8]} 16... Be7 {[%clk
0:02:31.1]} 17. Bb2 {[%clk 0:02:24.4]} 17... O-O {[%clk 0:02:18.9]} 18. d5
{[%clk 0:02:03.9]} 18... Bd7 {[%clk 0:02:00.6]} 19. Qh5 {[%clk 0:01:19.6]} 19...
g6 {[%clk 0:01:55.6]} 20. Qh6 {[%clk 0:01:17]} 20... e5 {[%clk 0:01:55.5]} 21.
f4 {[%clk 0:01:14.8]} 21... Bf6 {[%clk 0:01:54.1]} 22. fxe5 {[%clk 0:01:08.6]}
22... Bxe5 {[%clk 0:01:55]} 23. Bxe5 {[%clk 0:01:07.4]} 23... Qxe5 {[%clk
0:01:55.9]} 24. Rae1 {[%clk 0:01:06.1]} 24... Qd4+ {[%clk 0:01:51.9]} 25. Qe3
{[%clk 0:01:06.5]} 25... Qxe3+ {[%clk 0:01:34.2]} 26. Rxe3 {[%clk 0:01:07.4]}
26... Rfe8 {[%clk 0:01:34.7]} 27. Rfe1 {[%clk 0:01:07.2]} 27... Rxe3 {[%clk
0:01:34.9]} 28. Rxe3 {[%clk 0:01:08.1]} 28... Kf8 {[%clk 0:01:35.8]} 29. Kf2
{[%clk 0:01:07.5]} 29... Ba4 {[%clk 0:01:32.7]} 30. Re1 {[%clk 0:01:06.9]} 30...
b6 {[%clk 0:01:31.9]} 31. Ke3 {[%clk 0:01:06.7]} 31... Ke7 {[%clk 0:01:30.2]}
32. Kd4+ {[%clk 0:01:06.5]} 32... Kd6 {[%clk 0:01:30.6]} 33. Rf1 {[%clk
0:01:06.4]} 33... Rf8 {[%clk 0:01:04.6]} 34. g4 {[%clk 0:01:05.5]} 34... f6
{[%clk 0:01:00.3]} 35. h4 {[%clk 0:01:02.6]} 35... Bd7 {[%clk 0:00:59.4]} 36. g5
{[%clk 0:00:58.5]} 36... f5 {[%clk 0:00:59.7]} 37. Rf4 {[%clk 0:00:53.2]} 37...
Re8 {[%clk 0:00:58.5]} 38. h5 {[%clk 0:00:47.8]} 38... Re1 {[%clk 0:00:58.3]}
39. hxg6 {[%clk 0:00:46.9]} 39... hxg6 {[%clk 0:00:59.2]} 40. Rh4 {[%clk
0:00:47.5]} 40... Rg1 {[%clk 0:00:57.7]} 0-1

[Event "*** SCC Grand Prix: Titled Tuesday Blitz"]
[Site "Chess.com"]
[Date "2020.06.23"]
[Round "6"]
[White "UKR_Master"]
[Black "vanyakuba"]
[Result "1-0"]
[WhiteElo "2326"]
[BlackElo "2426"]
[TimeControl "180+1"]
[EndTime "11:05:45 PDT"]
[Termination "UKR_Master won by resignation"]

1. e4 {[%clk 0:03:00.9]} 1... d5 {[%clk 0:02:57.9]} 2. exd5 {[%clk 0:03:00.6]}
2... Qxd5 {[%clk 0:02:58.8]} 3. Nc3 {[%clk 0:03:00.8]} 3... Qa5 {[%clk
0:02:59.2]} 4. Nf3 {[%clk 0:03:01]} 4... Nf6 {[%clk 0:02:59.5]} 5. d4 {[%clk
0:03:01.5]} 5... Bg4 {[%clk 0:03:00]} 6. Bd2 {[%clk 0:03:01.2]} 6... c6 {[%clk
0:02:59.6]} 7. h3 {[%clk 0:03:00.1]} 7... Bh5 {[%clk 0:02:58.2]} 8. g4 {[%clk
0:03:00.6]} 8... Bg6 {[%clk 0:02:58]} 9. Ne5 {[%clk 0:03:01.2]} 9... e6 {[%clk
0:02:53.4]} 10. Bc4 {[%clk 0:03:00.4]} 10... Qc7 {[%clk 0:02:31.9]} 11. Nxg6
{[%clk 0:02:53.4]} 11... hxg6 {[%clk 0:02:31.3]} 12. Qf3 {[%clk 0:02:54]} 12...
Bd6 {[%clk 0:02:30.2]} 13. O-O-O {[%clk 0:02:52]} 13... Nbd7 {[%clk 0:02:29.3]}
14. Bb3 {[%clk 0:02:50.4]} 14... Rf8 {[%clk 0:02:25.5]} 15. d5 {[%clk
0:02:43.5]} 15... Nxd5 {[%clk 0:02:16.8]} 16. Bxd5 {[%clk 0:02:42.9]} 16... cxd5
{[%clk 0:02:09.6]} 17. Nb5 {[%clk 0:02:42.4]} 17... Qb6 {[%clk 0:02:03.3]} 18.
Nxd6+ {[%clk 0:02:33.2]} 18... Qxd6 {[%clk 0:02:04.2]} 19. Kb1 {[%clk
0:02:22.2]} 19... O-O-O {[%clk 0:01:55.9]} 20. Qc3+ {[%clk 0:01:57.4]} 20... Qc7
{[%clk 0:01:23]} 21. Qxg7 {[%clk 0:01:55.2]} 21... Nc5 {[%clk 0:01:23.3]} 22.
Bg5 {[%clk 0:01:35.3]} 22... Rde8 {[%clk 0:01:21.8]} 23. h4 {[%clk 0:01:28.3]}
23... Ne4 {[%clk 0:01:20.3]} 24. Be3 {[%clk 0:01:28]} 24... Rg8 {[%clk
0:00:38.8]} 25. Qd4 {[%clk 0:01:23.8]} 25... b6 {[%clk 0:00:37.4]} 26. f3 {[%clk
0:01:12.6]} 26... Nc5 {[%clk 0:00:32.3]} 27. Bg5 {[%clk 0:01:00]} 27... Kb7
{[%clk 0:00:25.3]} 28. h5 {[%clk 0:00:55.9]} 28... gxh5 {[%clk 0:00:24.5]} 29.
Rxh5 {[%clk 0:00:56.5]} 29... Qd7 {[%clk 0:00:05.9]} 30. Be3 {[%clk 0:00:45.8]}
30... Kc6 {[%clk 0:00:05.5]} 31. c4 {[%clk 0:00:43.3]} 31... dxc4 {[%clk
0:00:04.3]} 32. Rxc5+ {[%clk 0:00:41.6]} 1-0

[Event "*** SCC Grand Prix: Titled Tuesday Blitz"]
[Site "Chess.com"]
[Date "2020.06.23"]
[Round "6"]
[White "Sammed_Shete"]
[Black "ChronicUnhappiness"]
[Result "1-0"]
[WhiteElo "2570"]
[BlackElo "2362"]
[TimeControl "180+1"]
[EndTime "11:05:48 PDT"]
[Termination "Sammed_Shete won by resignation"]

1. e4 {[%clk 0:03:00.9]} 1... d6 {[%clk 0:02:59.3]} 2. d4 {[%clk 0:03:01]} 2...
Nf6 {[%clk 0:02:59.6]} 3. Nc3 {[%clk 0:03:01.7]} 3... g6 {[%clk 0:03:00]} 4. Be3
{[%clk 0:03:01.2]} 4... c6 {[%clk 0:02:59.6]} 5. f3 {[%clk 0:03:00.8]} 5... Nbd7
{[%clk 0:02:56.7]} 6. Qd2 {[%clk 0:03:01.2]} 6... b5 {[%clk 0:02:56.5]} 7. a3
{[%clk 0:02:55.2]} 7... Qc7 {[%clk 0:02:54.9]} 8. g4 {[%clk 0:02:53.4]} 8... Bb7
{[%clk 0:02:41.7]} 9. Nge2 {[%clk 0:02:49.4]} 9... e5 {[%clk 0:02:22]} 10. Ng3
{[%clk 0:02:40.1]} 10... exd4 {[%clk 0:02:08.8]} 11. Bxd4 {[%clk 0:02:40]} 11...
Ne5 {[%clk 0:02:08.9]} 12. Be2 {[%clk 0:02:39.8]} 12... c5 {[%clk 0:02:08.1]}
13. Bxe5 {[%clk 0:02:06.7]} 13... dxe5 {[%clk 0:02:07.3]} 14. Bxb5+ {[%clk
0:02:05.5]} 14... Bc6 {[%clk 0:02:07.1]} 15. g5 {[%clk 0:01:57.1]} 15... Rd8
{[%clk 0:02:01.2]} 16. Qe2 {[%clk 0:01:54.8]} 16... Nd7 {[%clk 0:01:55.7]} 17.
Bxc6 {[%clk 0:01:45.2]} 17... Qxc6 {[%clk 0:01:55.6]} 18. h4 {[%clk 0:01:45.7]}
18... Nb6 {[%clk 0:01:47.3]} 19. h5 {[%clk 0:01:42.4]} 19... Bg7 {[%clk
0:01:41.4]} 20. Qb5 {[%clk 0:01:31.9]} 20... Qxb5 {[%clk 0:01:32.5]} 21. Nxb5
{[%clk 0:01:31.5]} 21... Nc4 {[%clk 0:01:32.8]} 22. b3 {[%clk 0:01:30.7]} 22...
Ne3 {[%clk 0:01:31.4]} 23. Rc1 {[%clk 0:01:29.9]} 23... a6 {[%clk 0:01:20.6]}
24. Nc7+ {[%clk 0:01:19.6]} 24... Kd7 {[%clk 0:01:20.2]} 25. Nxa6 {[%clk
0:01:16.9]} 25... Kc6 {[%clk 0:01:18.4]} 26. Kf2 {[%clk 0:01:15.4]} 26... Ra8
{[%clk 0:01:00.6]} 27. Nxc5 {[%clk 0:01:09.5]} 27... Kxc5 {[%clk 0:00:56.9]} 28.
Kxe3 {[%clk 0:01:09.1]} 28... Rxa3 {[%clk 0:00:56.9]} 29. Rhd1 {[%clk
0:01:08.2]} 29... Rc8 {[%clk 0:00:48.9]} 30. Rd7 {[%clk 0:01:07.2]} 30... gxh5
{[%clk 0:00:38.2]} 31. Nxh5 {[%clk 0:01:05.2]} 31... Bf8 {[%clk 0:00:38]} 32.
Rxf7 {[%clk 0:01:03.4]} 32... Kb4 {[%clk 0:00:36.9]} 33. Nf6 {[%clk 0:00:56.9]}
33... Bc5+ {[%clk 0:00:32.9]} 34. Kd3 {[%clk 0:00:55.1]} 34... Bd4 {[%clk
0:00:27.5]} 35. Nd5+ {[%clk 0:00:52.8]} 35... Kb5 {[%clk 0:00:27.8]} 36. Rxh7
{[%clk 0:00:49.7]} 36... Rxb3+ {[%clk 0:00:26.4]} 37. cxb3 {[%clk 0:00:49.1]}
37... Rxc1 {[%clk 0:00:27.3]} 38. g6 {[%clk 0:00:48.8]} 38... Rg1 {[%clk
0:00:27.2]} 39. g7 {[%clk 0:00:48.6]} 39... Rg2 {[%clk 0:00:20.5]} 40. Nf6
{[%clk 0:00:47.8]} 1-0

[Event "*** SCC Grand Prix: Titled Tuesday Blitz"]
[Site "Chess.com"]
[Date "2020.06.23"]
[Round "6"]
[White "iaraldinho"]
[Black "Chessdreamer2020"]
[Result "0-1"]
[WhiteElo "2541"]
[BlackElo "2502"]
[TimeControl "180+1"]
[EndTime "11:05:48 PDT"]
[Termination "Chessdreamer2020 won by resignation"]

1. e4 {[%clk 0:02:58.8]} 1... d6 {[%clk 0:02:58.5]} 2. d4 {[%clk 0:02:57.4]}
2... Nf6 {[%clk 0:02:58.9]} 3. Nc3 {[%clk 0:02:57.7]} 3... c6 {[%clk 0:02:58.4]}
4. f3 {[%clk 0:02:56.8]} 4... b5 {[%clk 0:02:55.6]} 5. Be3 {[%clk 0:02:56.5]}
5... Nbd7 {[%clk 0:02:49.1]} 6. Qd2 {[%clk 0:02:55.5]} 6... a6 {[%clk
0:02:45.4]} 7. a3 {[%clk 0:02:55]} 7... Bb7 {[%clk 0:02:45.4]} 8. g4 {[%clk
0:02:54.3]} 8... Nb6 {[%clk 0:02:43.6]} 9. h4 {[%clk 0:02:53.3]} 9... e5 {[%clk
0:02:33.2]} 10. O-O-O {[%clk 0:02:48.9]} 10... Nfd7 {[%clk 0:02:30.3]} 11. Qf2
{[%clk 0:02:46.6]} 11... exd4 {[%clk 0:02:24.7]} 12. Bxd4 {[%clk 0:02:45.1]}
12... c5 {[%clk 0:02:24.7]} 13. Be3 {[%clk 0:02:42.1]} 13... Be7 {[%clk
0:02:24.8]} 14. g5 {[%clk 0:02:36.3]} 14... b4 {[%clk 0:02:24.8]} 15. axb4
{[%clk 0:02:35.4]} 15... cxb4 {[%clk 0:02:25.1]} 16. Nb1 {[%clk 0:02:18.1]}
16... Qc7 {[%clk 0:02:22.4]} 17. Bd3 {[%clk 0:02:11.2]} 17... Nc5 {[%clk
0:02:20.5]} 18. Bxc5 {[%clk 0:02:10.6]} 18... dxc5 {[%clk 0:02:19.8]} 19. Nh3
{[%clk 0:01:55.6]} 19... c4 {[%clk 0:02:18.9]} 20. Be2 {[%clk 0:01:55.6]} 20...
c3 {[%clk 0:02:14.1]} 21. Qh2 {[%clk 0:01:32.8]} 21... Qc5 {[%clk 0:01:54.2]}
22. Qf2 {[%clk 0:01:32.1]} 22... Qa5 {[%clk 0:01:51.7]} 23. Rd3 {[%clk 0:01:06]}
23... cxb2+ {[%clk 0:01:36.7]} 24. Kxb2 {[%clk 0:01:01.9]} 24... Nc4+ {[%clk
0:01:26.1]} 25. Kc1 {[%clk 0:01:01.4]} 25... Bc5 {[%clk 0:01:25.2]} 26. Rd4
{[%clk 0:00:51.9]} 26... Na3 {[%clk 0:01:09.9]} 27. Rhd1 {[%clk 0:00:50.2]}
27... O-O {[%clk 0:01:08.3]} 28. Nf4 {[%clk 0:00:35.4]} 28... Rac8 {[%clk
0:01:03.2]} 29. Nxa3 {[%clk 0:00:29.6]} 29... bxa3 {[%clk 0:00:55.7]} 30. Nd3
{[%clk 0:00:15.1]} 30... Qc3 {[%clk 0:00:45.7]} 31. Nxc5 {[%clk 0:00:14]} 31...
a2 {[%clk 0:00:38.6]} 32. Ra4 {[%clk 0:00:12.6]} 32... a1=Q+ {[%clk 0:00:32.4]}
33. Rxa1 {[%clk 0:00:13.5]} 33... Qxa1+ {[%clk 0:00:32.8]} 34. Kd2 {[%clk
0:00:13.9]} 34... Qa5+ {[%clk 0:00:33.2]} 0-1

[Event "*** SCC Grand Prix: Titled Tuesday Blitz"]
[Site "Chess.com"]
[Date "2020.06.23"]
[Round "6"]
[White "akashcheck"]
[Black "zurzan"]
[Result "1-0"]
[WhiteElo "2223"]
[BlackElo "1932"]
[TimeControl "180+1"]
[EndTime "11:05:49 PDT"]
[Termination "akashcheck won by checkmate"]

1. e4 {[%clk 0:03:00.9]} 1... Nf6 {[%clk 0:02:59.4]} 2. e5 {[%clk 0:03:00]} 2...
Nd5 {[%clk 0:02:59.6]} 3. c4 {[%clk 0:03:00.5]} 3... Nb6 {[%clk 0:02:59.2]} 4.
d4 {[%clk 0:03:01.1]} 4... d6 {[%clk 0:02:59.5]} 5. exd6 {[%clk 0:03:00.1]} 5...
cxd6 {[%clk 0:02:59.2]} 6. Nf3 {[%clk 0:03:00.1]} 6... g6 {[%clk 0:02:59.4]} 7.
Nc3 {[%clk 0:03:00]} 7... Bg7 {[%clk 0:02:59.6]} 8. h3 {[%clk 0:02:59.5]} 8...
O-O {[%clk 0:02:59.5]} 9. Be3 {[%clk 0:02:59.7]} 9... Nc6 {[%clk 0:02:59.6]} 10.
Rc1 {[%clk 0:02:58.1]} 10... a6 {[%clk 0:02:51.3]} 11. Be2 {[%clk 0:02:51.7]}
11... e5 {[%clk 0:02:48.6]} 12. dxe5 {[%clk 0:02:48.7]} 12... Be6 {[%clk
0:02:32.7]} 13. Nd5 {[%clk 0:02:32.9]} 13... Bxd5 {[%clk 0:02:25.7]} 14. cxd5
{[%clk 0:02:24.3]} 14... Nxe5 {[%clk 0:02:25.4]} 15. O-O {[%clk 0:02:20.8]}
15... Nbd7 {[%clk 0:02:20.5]} 16. Qb3 {[%clk 0:02:16.6]} 16... b5 {[%clk
0:02:18.4]} 17. Nxe5 {[%clk 0:02:08.6]} 17... Nxe5 {[%clk 0:02:17.9]} 18. f4
{[%clk 0:01:58.5]} 18... Nd7 {[%clk 0:02:13.6]} 19. Rc6 {[%clk 0:01:58.1]} 19...
Qe7 {[%clk 0:02:10.2]} 20. Bf3 {[%clk 0:01:48.3]} 20... Rfe8 {[%clk 0:02:08.3]}
21. Bf2 {[%clk 0:01:47]} 21... Nc5 {[%clk 0:01:56.6]} 22. Bxc5 {[%clk
0:01:43.3]} 22... dxc5 {[%clk 0:01:57.5]} 23. d6 {[%clk 0:01:43.8]} 23... Bd4+
{[%clk 0:01:51.5]} 24. Kh1 {[%clk 0:01:38.8]} 24... Qf6 {[%clk 0:01:47.5]} 25.
Rc7 {[%clk 0:01:28.6]} 25... Qxf4 {[%clk 0:01:43.3]} 26. Be2 {[%clk 0:01:21.6]}
26... c4 {[%clk 0:01:24.7]} 27. Bxc4 {[%clk 0:01:12.6]} 27... bxc4 {[%clk
0:01:24.1]} 28. Qxc4 {[%clk 0:01:12.6]} 28... Re1 {[%clk 0:00:23.8]} 29. Rxe1
{[%clk 0:01:08]} 29... Rf8 {[%clk 0:00:18.2]} 30. Rf1 {[%clk 0:00:43.7]} 30...
Qe3 {[%clk 0:00:14.6]} 31. Rcxf7 {[%clk 0:00:38.9]} 31... Bg7 {[%clk 0:00:04.9]}
32. Rxf8# {[%clk 0:00:36.9]} 1-0

[Event "*** SCC Grand Prix: Titled Tuesday Blitz"]
[Site "Chess.com"]
[Date "2020.06.23"]
[Round "6"]
[White "Gerodot71"]
[Black "Grieve72"]
[Result "1-0"]
[WhiteElo "2417"]
[BlackElo "2244"]
[TimeControl "180+1"]
[EndTime "11:05:51 PDT"]
[Termination "Gerodot71 won on time"]

1. d4 {[%clk 0:03:00.9]} 1... d5 {[%clk 0:02:58.3]} 2. c4 {[%clk 0:03:01.1]}
2... e6 {[%clk 0:02:58.5]} 3. Nf3 {[%clk 0:02:59.9]} 3... c6 {[%clk 0:02:58.7]}
4. Qc2 {[%clk 0:02:58.5]} 4... Nf6 {[%clk 0:02:57.9]} 5. g3 {[%clk 0:02:58.7]}
5... dxc4 {[%clk 0:02:57.6]} 6. Qxc4 {[%clk 0:02:58.2]} 6... b5 {[%clk
0:02:58.2]} 7. Qc2 {[%clk 0:02:58.2]} 7... Bb7 {[%clk 0:02:58.8]} 8. Bg2 {[%clk
0:02:57.8]} 8... Nbd7 {[%clk 0:02:55.1]} 9. O-O {[%clk 0:02:57.3]} 9... c5
{[%clk 0:02:55]} 10. dxc5 {[%clk 0:02:54.6]} 10... Bxc5 {[%clk 0:02:54.4]} 11.
Rd1 {[%clk 0:02:53.8]} 11... Rc8 {[%clk 0:02:52.1]} 12. e3 {[%clk 0:02:52.1]}
12... Bxe3 {[%clk 0:02:36.9]} 13. Qe2 {[%clk 0:01:58.1]} 13... Bxc1 {[%clk
0:02:29.4]} 14. Nc3 {[%clk 0:01:58.5]} 14... Bh6 {[%clk 0:02:24]} 15. Nxb5
{[%clk 0:01:58.4]} 15... O-O {[%clk 0:02:22.6]} 16. Nd6 {[%clk 0:01:58.6]} 16...
Rb8 {[%clk 0:02:11.4]} 17. Nxb7 {[%clk 0:01:57.3]} 17... Rxb7 {[%clk 0:02:09.7]}
18. Ne5 {[%clk 0:01:58.2]} 18... Rc7 {[%clk 0:02:01.2]} 19. Nc6 {[%clk
0:01:56.6]} 19... Qe8 {[%clk 0:01:51.2]} 20. b4 {[%clk 0:01:46.6]} 20... Nb6
{[%clk 0:01:42.3]} 21. b5 {[%clk 0:01:42.6]} 21... Nfd5 {[%clk 0:01:36]} 22. Qc2
{[%clk 0:01:36.3]} 22... g6 {[%clk 0:01:16.2]} 23. a4 {[%clk 0:01:31.6]} 23...
Nb4 {[%clk 0:01:02.4]} 24. Qb3 {[%clk 0:01:27.1]} 24... Nxc6 {[%clk 0:00:59.9]}
25. Bxc6 {[%clk 0:01:28]} 25... Qe7 {[%clk 0:00:59]} 26. a5 {[%clk 0:01:27]}
26... Nd5 {[%clk 0:00:53.3]} 27. Bxd5 {[%clk 0:01:20.7]} 27... exd5 {[%clk
0:00:52.8]} 28. Rxd5 {[%clk 0:01:21.6]} 28... Rfc8 {[%clk 0:00:43.1]} 29. Rad1
{[%clk 0:01:19.6]} 29... Rc1 {[%clk 0:00:39.7]} 30. h4 {[%clk 0:01:11.4]} 30...
Qb7 {[%clk 0:00:23.1]} 31. Kh2 {[%clk 0:01:00.3]} 31... R1c2 {[%clk 0:00:18.7]}
32. Kg1 {[%clk 0:00:41.8]} 32... Kg7 {[%clk 0:00:12.7]} 33. Rd7 {[%clk
0:00:38.9]} 1-0

[Event "*** SCC Grand Prix: Titled Tuesday Blitz"]
[Site "Chess.com"]
[Date "2020.06.23"]
[Round "6"]
[White "Radzio1987"]
[Black "seorobert1971"]
[Result "1-0"]
[WhiteElo "2862"]
[BlackElo "2696"]
[TimeControl "180+1"]
[EndTime "11:05:53 PDT"]
[Termination "Radzio1987 won on time"]

1. c4 {[%clk 0:03:00.9]} 1... e6 {[%clk 0:02:59.4]} 2. Nc3 {[%clk 0:03:00.6]}
2... Nf6 {[%clk 0:02:59.1]} 3. e4 {[%clk 0:02:59.8]} 3... c5 {[%clk 0:02:59.3]}
4. e5 {[%clk 0:02:57.9]} 4... Ng8 {[%clk 0:02:59.2]} 5. Nf3 {[%clk 0:02:58.5]}
5... Nc6 {[%clk 0:02:59.3]} 6. d4 {[%clk 0:02:58.7]} 6... cxd4 {[%clk
0:03:00.2]} 7. Nxd4 {[%clk 0:02:59.2]} 7... Nxe5 {[%clk 0:03:00.4]} 8. Ndb5
{[%clk 0:02:59.3]} 8... a6 {[%clk 0:02:59.8]} 9. Nd6+ {[%clk 0:02:59.5]} 9...
Bxd6 {[%clk 0:03:00]} 10. Qxd6 {[%clk 0:03:00.4]} 10... f6 {[%clk 0:02:59.9]}
11. Be3 {[%clk 0:03:00.1]} 11... Ne7 {[%clk 0:02:53.2]} 12. Bb6 {[%clk 0:03:00]}
12... Nf5 {[%clk 0:02:53.1]} 13. Qb4 {[%clk 0:03:00]} 13... Qe7 {[%clk
0:02:48.1]} 14. Qb3 {[%clk 0:02:46.6]} 14... d6 {[%clk 0:02:41.5]} 15. f4 {[%clk
0:02:39.1]} 15... Nc6 {[%clk 0:02:36.3]} 16. O-O-O {[%clk 0:02:36.3]} 16... O-O
{[%clk 0:02:34]} 17. g4 {[%clk 0:02:35.3]} 17... Nh6 {[%clk 0:02:33.9]} 18. Rg1
{[%clk 0:02:35]} 18... Nf7 {[%clk 0:02:30.3]} 19. Kb1 {[%clk 0:02:32.4]} 19...
Bd7 {[%clk 0:02:14.9]} 20. h4 {[%clk 0:02:31.8]} 20... Rfc8 {[%clk 0:02:07.6]}
21. g5 {[%clk 0:02:29]} 21... fxg5 {[%clk 0:02:02.5]} 22. hxg5 {[%clk
0:02:28.6]} 22... e5 {[%clk 0:01:49.7]} 23. Nd5 {[%clk 0:02:27.7]} 23... Bf5+
{[%clk 0:01:49.6]} 24. Bd3 {[%clk 0:01:58.7]} 24... Qd7 {[%clk 0:01:47.5]} 25.
Qc2 {[%clk 0:01:53]} 25... Bxd3 {[%clk 0:01:17]} 26. Qxd3 {[%clk 0:01:53.9]}
26... Ne7 {[%clk 0:01:13.2]} 27. g6 {[%clk 0:01:53.1]} 27... hxg6 {[%clk
0:01:06.7]} 28. Nxe7+ {[%clk 0:01:49.7]} 28... Qxe7 {[%clk 0:01:06.4]} 29. Rxg6
{[%clk 0:01:48.3]} 29... exf4 {[%clk 0:00:58.6]} 30. Rdg1 {[%clk 0:01:47.2]}
30... Ne5 {[%clk 0:00:55.8]} 31. Qd5+ {[%clk 0:01:45.4]} 31... Kh7 {[%clk
0:00:53.4]} 32. Rxd6 {[%clk 0:00:55.3]} 32... Nxc4 {[%clk 0:00:20.3]} 33. Qf5+
{[%clk 0:00:45.6]} 33... Kg8 {[%clk 0:00:19.8]} 34. Rh6 {[%clk 0:00:45.1]} 34...
Nd2+ {[%clk 0:00:18.1]} 35. Ka1 {[%clk 0:00:43.4]} 1-0